Workbook

Sheet WA Electric - Sched 92
D4: RESIDENTIAL | E4: GENERAL SVC. | F4: LG. GEN. SVC. | G4: EX LG GEN SVC | H4: PUMPING | I4: ST & AREA LTG
A5: Source | C5: TOTAL | D5: SCHEDULE 1,2 | E5: SCH. 11,12,13 | F5: SCH. 21,22,23 | G5: SCHEDULE 25/25I | H5: SCH. 30, 31, 32 | I5: SCH. 41-48
A7: Forecast | B7: Total Annual Forecasted kWh's | C7: =SUM(D7:I7) -> 5371975013 | D7: =SUM('Billing Determinants'!$F19:$Q19) -> 2566593571 | E7: =SUM('Billing Determinants'!F20:Q20) -> 681083760.8 | F7: =SUM('Billing Determinants'!F21:Q21) -> 1311256847 | G7: =SUM('Billing Determinants'!F22:Q22) -> 649738455.4 | H7: =SUM('Billing Determinants'!F23:Q23) -> 147533673.3 | I7: =SUM('Billing Determinants'!F24:Q24) -> 15768705.6
B9: Present LIRAP Rates | D9: 0.00179 | E9: 0.0026 | F9: 0.00186 | G9: 0.00118 | H9: 0.00162 | I9: 0.021
B11: Present Annual LIRAP Revenue | C11: =SUM(D11:I11) -> 9969486.934 | D11: =D7*D9 -> 4594202.492 | E11: =E7*E9 -> 1770817.778 | F11: =F7*F9 -> 2438937.736 | G11: 766691.3774 | H11: 239004.5507 | I11: 159833
A13: UE-220053 | B13: Base Revenue | C13: =SUM(D13:I13) -> 574386944.7 | D13: ='Base Revenue'!F14*1000 -> 279484405.9 | E13: ='Base Revenue'!F16*1000 -> 84833839.71 | F13: ='Base Revenue'!F18*1000 -> 136399731.3 | G13: =('Base Revenue'!F20+'Base Revenue'!F22)*1000-14265000 -> 49983817.11 | H13: ='Base Revenue'!F24*1000 -> 16075572.79 | I13: ='Base Revenue'!F26*1000 -> 7609577.842
B15: Percentage of Current Base Volumetric Revenue | C15: =SUM(D15:I15) -> 1 | D15: =D13/$C$13 -> 0.4865786184 | E15: =E13/$C$13 -> 0.147694582 | F15: =F13/$C$13 -> 0.2374701106 | G15: =G13/$C$13 -> 0.08702115807 | H15: 0.02798735755 | I15: =I13/$C$13 -> 0.0132481734
B17: Revenue Requirement | C17: 17591583.41 | D17: =D7/C7 -> 0.4777746666
B19: Revenue Spread Based on Current Allocation | C19: =SUM(D19:I19) -> 17591583.41 | D19: =$C$17*D15 -> 8559688.348 | E19: =$C$17*E15 -> 2598181.558 | F19: =$C$17*F15 -> 4177475.257 | G19: =$C$17*G15 -> 1530839.96 | H19: 492341.9346 | I19: =$C$17*I15 -> 233056.3474
B21: LIRAP Revenue Increase <Decrease> | C21: =C19-C11 -> 7622096.471 | D21: =D19-D11 -> 3965485.856 | E21: =E19-E11 -> 827363.78 | F21: =F19-F11 -> 1738537.521 | G21: =G19-G11 -> 764148.5828 | H21: =H19-H11 -> 253337.3838 | I21: 73223.34735
B23: Proposed LIRAP Rates | D23: =D19/D7 -> 0.00333503849 | E23: =E19/E7 -> 0.003814775374 | F23: 0.003185855819 | G23: 0.002356086434 | H23: 0.003337149571 | I23: =I19/I7 -> 0.01477967522
B25: Percentage Increase <Decrease> | C25: =C19/C11-1 -> 0.7645425007 | D25: =D19/D11-1 -> 0.8631499946 | E25: =E19/E11-1 -> 0.4672212976 | F25: =F19/F11-1 -> 0.7128257092 | G25: =G19/G11-1 -> 0.9966834184 | H25: =H19/H11-1 -> 1.059968871 | I25: =I19/I11-1 -> 0.458124088
B27: Present Billed Revenue | C27: =SUM(D27:I27) -> 576920000 | D27: 252270000 | E27: 89268000 | F27: 141148000 | G27: 73514000 | H27: 13888000 | I27: 6832000
B29: Proposed Billed Revenue | C29: =SUM(D29:I29) -> 584542096.5 | D29: =D21+D27 -> 256235485.9 | E29: =E21+E27 -> 90095363.78 | F29: 142886537.5 | G29: =G21+G27 -> 74278148.58 | H29: =H21+H27 -> 14141337.38 | I29: =I21+I27 -> 6905223.347
B31: Overall Billed Percentage Increase <Decrease> | C31: =C29/C27-1 -> 0.01321170435 | D31: =D29/D27-1 -> 0.01571921297 | E31: =E29/E27-1 -> 0.00926831317 | F31: =F29/F27-1 -> 0.01231712473 | G31: =G29/G27-1 -> 0.01039459943 | H31: 0.01824145909 | I31: 0.01071770307
D33: =D23-D9 -> 0.00154503849 | E33: 0.001214775374 | F33: 0.001325855819 | G33: 0.001176086434 | H33: 0.001717149571
B34: Present LIRAP Revenue as a Percentage of Billed Revenue | C34: =C11/C27 -> 0.01728053618
B36: Proposed LIRAP Revenue as a Percentage of Billed Revenue | C36: =C17/C29 -> 0.03009463905
C38: Present | D38: Proposed | E38: Change
B39: Gross LIRAP Revenue | C39: =C11 -> 9969486.934 | D39: =C19 -> 17591583.41 | E39: =D39-C39 -> 7622096.471
B40: Revenue Conversion Factor | C40: ='Rev Conv Factor'!E22 -> 0.9560685519 | D40: ='Rev Conv Factor'!E22 -> 0.9560685519
B42: Net LIRAP Revenue | C42: =C39*C40 -> 9531512.936 | D42: =D39*D40 -> 16818759.67 | E42: =D42-C42 -> 7287246.736
C44: Present | D44: Proposed | E44: $ Change | F44: % Change
B45: Average Monthly Bill @ 932 kWh's - Increase <Decrease> | C45: =9+(800*C49)+((932-800)*C50) -> 87.52804 | D45: =9+(800*E49)+((932-800)*E50) -> 88.97264 | E45: =D45-C45 -> 1.4446 | F45: =E45/C45 -> 0.01650442532
C47: Present | D47: Change | E47: Proposed
B48: Basic Charge | C48: 9 | D48: 0 | E48: =C48+D48 -> 9
B49: First 800 kWh's | C49: 0.08216 | D49: =ROUND($D$23,5)-ROUND($D$9,5) -> 0.00155 | E49: =C49+D49 -> 0.08371
B50: 801 - 1500 kWh's | C50: 0.09697 | D50: =ROUND($D$23,5)-ROUND($D$9,5) -> 0.00155 | E50: =C50+D50 -> 0.09852
B51: Over 1500 kWh's | C51: 0.11518 | D51: =ROUND($D$23,5)-ROUND($D$9,5) -> 0.00155 | E51: 0.11673
C53: =C48+(800*C49)+(132*C50) -> 87.52804 | D53: =932*D49 -> 1.4446 | E53: =E48+(800*E49)+(132*E50) -> 88.97264
E55: =D53/C53 -> 0.01650442532
D59: Change in Annual Revenue
C60: Rate Schedule | D60: ($) | E60: (%)
C61: Schedule 01/02 | D61: 3965000 | E61: 0.016
C62: Schedule 11/12/13 | D62: 827000 | E62: 0.009
C63: Schedule 21/22/23 | D63: 1739000 | E63: 0.012
C64: Schedule 25/25I | D64: 764000 | E64: 0.01
C65: Schedule 31/32 | D65: 253000 | E65: 0.018
C66: Street and Area Lights | D66: 73000 | E66: 0.011
C67: Total | D67: =SUM(D61:D66) -> 7621000 | E67: 0.013

Sheet LIRAP Balance
B1: 2023 | C1: 2023 | D1: 2023 | E1: 2023 | F1: 2023 | G1: 2023 | H1: 2024 | I1: 2024 | J1: 2024 | K1: 2024 | L1: 2024 | M1: 2024 | N1: 2024 | O1: 2024 | P1: 2024 | Q1: 2024 | R1: 2024 | S1: 2024 | T1: 2025 | U1: 2025 | V1: 2025 | W1: 2025 | X1: 2025 | Y1: 2025 | Z1: 2025 | AA1: 2025 | AB1: 2025 | AC1: 2025
B2: End July | C2: End August | D2: End September | E2: End October | F2: End November | G2: End December | H2: End January | I2: End February | J2: End March | K2: End April | L2: End May | M2: End June | N2: End July | O2: End August | P2: End September | Q2: End October | R2: End November | S2: End December | T2: End January | U2: End February | V2: End March | W2: End April | X2: End May | Y2: End June | Z2: End July | AA2: End August | AB2: End September | AC2: End October
A3: Expected elec tariff rider revenue | C3: =-'Revenue By Month'!D39 -> -831651.5683 | D3: =-'Revenue By Month'!E39 -> -694515.7077 | E3: =-'Revenue By Month'!F39 -> -720123.9459 | F3: =-'Revenue By Month'!G39 -> -1483042.641 | G3: =-'Revenue By Month'!H39 -> -1681278.082 | H3: =-'Revenue By Month'!I39 -> -1703781.519 | I3: =-'Revenue By Month'!J39 -> -1509411.238 | J3: =-'Revenue By Month'!K39 -> -1406417.638 | K3: =-'Revenue By Month'!L39 -> -1241976.026 | L3: =-'Revenue By Month'!M39 -> -1197515.089 | M3: =-'Revenue By Month'!N39 -> -1240291.167 | N3: =-'Revenue By Month'!O39 -> -1400294.074 | O3: =-'Revenue By Month'!P39 -> -1457559.77 | P3: =-'Revenue By Month'!Q39 -> -1226071.265 | Q3: =-'Revenue By Month'!R39 -> -1271121.163 | R3: =-'Revenue By Month'!S39 -> -1461416.123 | S3: =-'Revenue By Month'!T39 -> -1676736.389 | T3: =-'Revenue By Month'!U39 -> -1705566.706 | U3: =-'Revenue By Month'!V39 -> -1514733.927 | V3: =-'Revenue By Month'!W39 -> -1416196.113 | W3: =-'Revenue By Month'!X39 -> -1253001.805 | X3: =-'Revenue By Month'!Y39 -> -1206791.718 | Y3: =-'Revenue By Month'!Z39 -> -1243387.798 | Z3: =-'Revenue By Month'!AA39 -> -1401113.399 | AA3: =-'Revenue By Month'!AB39 -> -1456929.496 | AB3: =-'Revenue By Month'!AC39 -> -1227441.383 | AC3: =-'Revenue By Month'!AD39 -> -1277707.512
A4: Expected LIRAP Expense | C4: ='LIRAP Expense Summary'!$B$48 -> 372000 | D4: ='LIRAP Expense Summary'!$B$48 -> 372000 | E4: ='LIRAP Expense Summary'!$C$32/12 -> 1166051.429 | F4: ='LIRAP Expense Summary'!$C$32/12 -> 1166051.429 | G4: ='LIRAP Expense Summary'!$C$32/12 -> 1166051.429 | H4: ='LIRAP Expense Summary'!$C$32/12 -> 1166051.429 | I4: ='LIRAP Expense Summary'!$C$32/12 -> 1166051.429 | J4: ='LIRAP Expense Summary'!$C$32/12 -> 1166051.429 | K4: ='LIRAP Expense Summary'!$C$32/12 -> 1166051.429 | L4: ='LIRAP Expense Summary'!$C$32/12 -> 1166051.429 | M4: ='LIRAP Expense Summary'!$C$32/12 -> 1166051.429 | N4: ='LIRAP Expense Summary'!$C$32/12 -> 1166051.429 | O4: ='LIRAP Expense Summary'!$C$32/12 -> 1166051.429 | P4: ='LIRAP Expense Summary'!$C$32/12 -> 1166051.429 | Q4: ='LIRAP Expense Summary'!$D$32/12 -> 1925754.904 | R4: ='LIRAP Expense Summary'!$D$32/12 -> 1925754.904 | S4: ='LIRAP Expense Summary'!$D$32/12 -> 1925754.904 | T4: ='LIRAP Expense Summary'!$D$32/12 -> 1925754.904 | U4: ='LIRAP Expense Summary'!$D$32/12 -> 1925754.904 | V4: ='LIRAP Expense Summary'!$D$32/12 -> 1925754.904 | W4: ='LIRAP Expense Summary'!$D$32/12 -> 1925754.904 | X4: ='LIRAP Expense Summary'!$D$32/12 -> 1925754.904 | Y4: ='LIRAP Expense Summary'!$D$32/12 -> 1925754.904 | Z4: ='LIRAP Expense Summary'!$D$32/12 -> 1925754.904 | AA4: ='LIRAP Expense Summary'!$D$32/12 -> 1925754.904 | AB4: ='LIRAP Expense Summary'!$D$32/12 -> 1925754.904 | AC4: ='LIRAP Expense Summary'!$E$32/12 -> 2260981.641
A5: Net change in balance | C5: =C3+C4 -> -459651.5683 | D5: -322515.7077 | E5: 445927.483 | F5: -316991.2121 | G5: -515226.6534 | H5: -537730.0897 | I5: -343359.8088 | J5: -240366.2096 | K5: -75924.59722 | L5: -31463.66031 | M5: -74239.73841 | N5: -234242.6447 | O5: -291508.3412 | P5: -60019.836 | Q5: =Q3+Q4 -> 654633.7409 | R5: 464338.7807 | S5: 249018.5145 | T5: 220188.1982 | U5: 411020.9765 | V5: 509558.7905 | W5: 672753.0991 | X5: 718963.1857 | Y5: 682367.1055 | Z5: 524641.5049 | AA5: 468825.4081 | AB5: 698313.5209 | AC5: =AC3+AC4 -> 983274.129
A6: Accounting Adjustment
A7: Elec Tariff rider balance | B7: -4200584.37 | C7: =C5+C6+B7 -> -4660235.938 | D7: =D5+D6+C7 -> -4982751.646 | E7: =E5+E6+D7 -> -4536824.163 | F7: -4853815.375 | G7: -5369042.028 | H7: -5906772.118 | I7: -6250131.927 | J7: -6490498.137 | K7: -6566422.734 | L7: -6597886.394 | M7: -6672126.133 | N7: -6906368.777 | O7: -7197877.118 | P7: =O7+P5+P6 -> -7257896.954 | Q7: =P7+Q5+Q6 -> -6603263.214 | R7: =Q7+R5+R6 -> -6138924.433 | S7: -5889905.918 | T7: -5669717.72 | U7: -5258696.744 | V7: -4749137.953 | W7: -4076384.854 | X7: -3357421.668 | Y7: -2675054.563 | Z7: -2150413.058 | AA7: -1681587.65 | AB7: -983274.129 | AC7: =AB7+AC5+AC6 -> -6.752088666e-09
A11: Forecasted End of October 2023 Balance | B11: =E7 -> -4536824.163 | C11: Overfunded "Rebate"
A12: November 2023 - October 2025 Expenditure Budget | B12: =SUM(F4:AC4) -> 38196606.21
A13: November 2023 - October 2025 Forecasted Revenue | B13: =SUM(F3:AC3) -> -33659782.04
B14: =SUM(B6:P6) -> 0
A15: Total Projected DSM Balance October 2025 | B15: =B11+B12+B14+B13 -> 0 | C15: (Overfunded)/Underfunded

Sheet LIRAP Expense Summary
A1: Washington LIRAP Spending Forecast
A2: Direct Service | C2: 23-24 PY (Existing Budget) | D2: 24-25 PY | E2: 25-26 PY | F2: 26-27 PY | H2: Arrearage Programs | I2: Oregon Actuals (Oct 22-May 23) | L2: Washington Forecast
A3: Customers | B3: 129500 | C3: 47915 | D3: 73815 | E3: 86765 | F3: 93240 | I3: Participants | J3: Avg. Benefit | L3: Participants | M3: Avg. Benefit | N3: Total Benefit
A4: Saturation Forecast | B4: 1 | C4: 0.37 | D4: 0.57 | E4: 0.67 | F4: 0.72 | H4: AFP | I4: 1086 | J4: 496 | L4: =L6*L7 -> 3080 | M4: =M6*J7 -> 711.9617225 | N4: =L4*M4 -> 2192842.105
A5: LIRAP Share Elec | B5: 1837570.976 | C5: 679901.2612 | D5: 1047415.457 | E5: 1231172.554 | F5: 1323051.103 | H5: AMP | I5: 491 | J5: 98 | L5: =L6*L8 -> 1400 | M5: =M6*J8 -> 140.6698565 | N5: =L5*M5 -> 196937.799
A6: LIRAP Share Gas | B6: 1079208.351 | C6: 399307.0899 | D6: 615148.7602 | E6: 723069.5953 | F6: 777030.0128 | H6: Avg Past Due | I6: 9629 | J6: 209 | L6: 28000 | M6: 300
A7: BD Elec | B7: 35341196.75 | C7: 13076242.8 | D7: 20144482.15 | E7: 23678601.83 | F7: 25445661.66 | H7: AFP % | I7: =I4/I6 -> 0.1127842974 | J7: =J4/J6 -> 2.373205742 | L7: 0.11 | M7: =M4/M6 -> 2.373205742
A8: BD Gas | B8: 20755940.95 | C8: 7679698.152 | D8: 11830886.34 | E8: 13906480.44 | F8: 14944277.48 | H8: AMP % | I8: =I5/I6 -> 0.05099179562 | J8: =J5/J6 -> 0.4688995215 | L8: 0.05 | M8: =M5/M6 -> 0.4688995215
A9: AFP Elec | B9: 1381490.526 | C9: 511151.4947 | D9: 787449.6 | E9: 925598.6526 | F9: 994673.1789
A10: AFP Gas | B10: 811351.5789 | C10: 300200.0842 | D10: 462470.4 | E10: 543605.5579 | F10: 584173.1368
A11: AMP Elec | B11: 124070.8134 | C11: 45906.20096 | D11: 70720.36364 | E11: 83127.44498 | F11: 89330.98565 | H11: Average Annual Bill | I11: Electric Only | J11: Dual Fuel | K11: Gas Only | L11: Overall
A12: AMP Gas | B12: 72866.98565 | C12: 26960.78469 | D12: 41534.18182 | E12: 48820.88038 | F12: 52464.22967 | H12: Electric | I12: 1248 | J12: 1032 | K12: 0 | L12: 1128
A13: Other DS Elec | B13: 2901325.378 | C13: 1073490.39 | D13: 1653755.466 | E13: 1943888.004 | F13: 2088954.272 | H13: Gas | I13: 0 | J13: 948 | K13: 888 | L13: 864
A14: Other DS Gas | B14: 1703953 | C14: 630462.61 | D14: 971253.21 | E14: 1141648.51 | F14: 1226846.16
A15: LIHEAP | B15: -6675000 | C15: -6000000 | D15: -6200000 | E15: -7000000 | F15: -7500000
A16: Direct Service Total | B16: =SUM(B5:B15) -> 59333975.32 | C16: =SUM(C5:C15) -> 18423320.87 | D16: =SUM(D5:D15) -> 31425115.93 | E16: =SUM(E5:E15) -> 37226013.46 | F16: =SUM(F5:F15) -> 40026462.23 | H16: Percent Electric | I16: 0.63
H17: Percent Gas | I17: 0.37
A18: Admin/Con-Ed/Outreach | B18: 1 | C18: 0.37 | D18: 0.57 | E18: 0.67 | F18: 0.72
A19: Agency Admin Elec | B19: 4033013.514 | C19: 1492215 | D19: 2298817.703 | E19: 2702119.054 | F19: 2903769.73 | H19: LIRAP Share | I19: WA Actuals (Oct 2018-Sept 22)
A20: Agency Admin Gas | B20: 2459386.486 | C20: 909973 | D20: 1401850.297 | E20: 1647788.946 | F20: 1770758.27 | I20: Participants | J20: Total Benefit | K20: Average Benefit
A21: Agency Con-Ed Elec | B21: 1026424.324 | C21: 379777 | D21: 585061.8649 | E21: 687704.2973 | F21: 739025.5135 | H21: 18-19 PY | I21: 10211 | J21: 2957944.14 | K21: =J21/I21 -> 289.6821212
A22: Agency Con-Ed Gas | B22: 626024.3243 | C22: 231629 | D22: 356833.8649 | E22: 419436.2973 | F22: 450737.5135 | H22: 19-20 PY | I22: 11996 | J22: 3528478.38 | K22: =J22/I22 -> 294.137911
A23: Admin/Con-Ed/Outreach Total | B23: =SUM(B19:B22) -> 8144848.649 | C23: =SUM(C19:C22) -> 3013594 | D23: =SUM(D19:D22) -> 4642563.73 | E23: =SUM(E19:E22) -> 5457048.595 | F23: =SUM(F19:F22) -> 5864291.027 | H23: 20-21 PY | I23: 7337 | J23: 2306538.34 | K23: 314.3707701
H24: 21-22 | I24: 8978 | J24: 2874156.45 | K24: 320.1332646
A25: LIRAP Total | B25: 74153823.96 | C25: 27436914.87 | D25: 42267679.66 | E25: 49683062.06 | F25: 53390753.25 | H25: Total | I25: =SUM(I21:I24) -> 38522 | J25: =SUM(J21:J24) -> 11667117.31 | K25: 302.8689401
A26: Avista Outreach Elec | B26: 63000 | C26: 441000 | D26: 315000 | E26: 157500 | F26: 157500 | H26: Avg | I26: =AVERAGE(I21:I24) -> 9630.5 | J26: =AVERAGE(J21:J24) -> 2916779.327 | K26: =J26/I26 -> 302.8689401
A27: Avista Outreach Gas | B27: 37000 | C27: 259000 | D27: 185000 | E27: 92500 | F27: 92500
A28: Avista Con-Ed Electric | B28: 197116.2162 | C28: 72933 | D28: 112356.2432 | E28: 132067.8649 | F28: 141923.6757
A29: Avista Con-Ed Gas | B29: 120205.4054 | C29: 44476 | D29: 68517.08108 | E29: 80537.62162 | F29: 86547.89189
A30: LIRAP Grand Total | B30: =SUM(B16, B23, B26:B29) -> 67896145.59 | C30: =SUM(C16, C23, C26:C29) -> 22254323.87 | D30: =SUM(D16, D23, D26:D29) -> 36748552.98 | E30: =SUM(E16, E23, E26:E29) -> 43145667.54 | F30: =SUM(F16, F23, F26:F29) -> 46369224.82
B32: Annual Electric (Oct - Sep) | C32: =C5+C7+C9+C11+C13+C19+C21+C26+C28+(C15*$I$16) -> 13992617.15 | D32: =D5+D7+D9+D11+D13+D19+D21+D26+D28+(D15*$I$16) -> 23109058.85 | E32: =E5+E7+E9+E11+E13+E19+E21+E26+E28+(E15*$I$16) -> 27131779.7 | F32: =F5+F7+F9+F11+F13+F19+F21+F26+F28+(F15*$I$16) -> 29158890.12
B33: Annual Natural Gas (Oct - Sep) | C33: =C6+C8+C10+C12+C14+C20+C22+C27+C29+(C15*$I$17) -> 8261706.721 | D33: =D6+D8+D10+D12+D14+D20+D22+D27+D29+(D15*$I$17) -> 13639494.14 | E33: =E6+E8+E10+E12+E14+E20+E22+E27+E29+(E15*$I$17) -> 16013887.85 | F33: =F6+F8+F10+F12+F14+F20+F22+F27+F29+(F15*$I$17) -> 17210334.7
C34: =C32+C33 -> 22254323.87 | D34: =D32+D33 -> 36748552.98 | E34: 43145667.54 | F34: 46369224.82
C35: =C34-C30 -> 0 | D35: =D34-D30 -> 0 | E35: 0 | F35: 0
A38: Estimated Total LIRAP Costs Aug-Sept 2023
A39: Direct Service Electric | B39: 882000
A40: Direct Service Gas | B40: 518000
A41: Admin Electric | B41: 465000
A42: Admin Gas | B42: 283500
A43: Con-Ed Electric | B43: 141000
A44: Con-Ed Gas | B44: 86000
A45: Total | B45: 2375500
A47: Monthly Gas | B47: =(B40+B42+B44)/4 -> 221875
A48: Monthly Electric | B48: =(B39+B41+B43)/4 -> 372000

Sheet Revenue By Month
A4: Forecasted Usage | D4: ='Billing Determinants'!C7 -> 2023-08-31 | E4: ='Billing Determinants'!D7 -> 2023-09-30 | F4: ='Billing Determinants'!E7 -> 2023-10-30 | G4: ='Billing Determinants'!F7 -> 2023-11-30 | H4: ='Billing Determinants'!G7 -> 2023-12-30 | I4: ='Billing Determinants'!H7 -> 2024-01-30 | J4: ='Billing Determinants'!I7 -> 2024-02-29 | K4: ='Billing Determinants'!J7 -> 2024-03-29 | L4: ='Billing Determinants'!K7 -> 2024-04-29 | M4: ='Billing Determinants'!L7 -> 2024-05-29 | N4: ='Billing Determinants'!M7 -> 2024-06-29 | O4: ='Billing Determinants'!N7 -> 2024-07-29 | P4: ='Billing Determinants'!O7 -> 2024-08-29 | Q4: ='Billing Determinants'!P7 -> 2024-09-29 | R4: ='Billing Determinants'!Q7 -> 2024-10-29 | S4: ='Billing Determinants'!R7 -> 2024-11-29 | T4: ='Billing Determinants'!S7 -> 2024-12-29 | U4: ='Billing Determinants'!T7 -> 2025-01-29 | V4: ='Billing Determinants'!U7 -> 2025-02-28 | W4: ='Billing Determinants'!V7 -> 2025-03-28 | X4: ='Billing Determinants'!W7 -> 2025-04-28 | Y4: ='Billing Determinants'!X7 -> 2025-05-28 | Z4: ='Billing Determinants'!Y7 -> 2025-06-28 | AA4: ='Billing Determinants'!Z7 -> 2025-07-28 | AB4: ='Billing Determinants'!AA7 -> 2025-08-28 | AC4: ='Billing Determinants'!AB7 -> 2025-09-28 | AD4: ='Billing Determinants'!AC7 -> 2025-10-28
B5: Residential Schedule 001 | D5: ='Billing Determinants'!C19 -> 216209497.8 | E5: ='Billing Determinants'!D19 -> 164378140.2 | F5: ='Billing Determinants'!E19 -> 174139117.2 | G5: ='Billing Determinants'!F19 -> 235946008 | H5: ='Billing Determinants'!G19 -> 297456462.6 | I5: ='Billing Determinants'!H19 -> 301765375.5 | J5: ='Billing Determinants'!I19 -> 255859994.1 | K5: ='Billing Determinants'!J19 -> 225841060.5 | L5: ='Billing Determinants'!K19 -> 182482987.3 | M5: ='Billing Determinants'!L19 -> 163759072.5 | N5: ='Billing Determinants'!M19 -> 161242849.6 | O5: ='Billing Determinants'!N19 -> 192776018.1 | P5: ='Billing Determinants'!O19 -> 210064417 | Q5: ='Billing Determinants'!P19 -> 164248252.8 | R5: ='Billing Determinants'!Q19 -> 175151073.1 | S5: ='Billing Determinants'!R19 -> 230797454 | T5: ='Billing Determinants'!S19 -> 298268989.5 | U5: ='Billing Determinants'!T19 -> 301956578.9 | V5: ='Billing Determinants'!U19 -> 258602225.1 | W5: ='Billing Determinants'!V19 -> 230124279.3 | X5: ='Billing Determinants'!W19 -> 187095773 | Y5: ='Billing Determinants'!X19 -> 168319383.4 | Z5: ='Billing Determinants'!Y19 -> 163683407.8 | AA5: ='Billing Determinants'!Z19 -> 192711531.4 | AB5: ='Billing Determinants'!AA19 -> 210081292.8 | AC5: ='Billing Determinants'!AB19 -> 165466383.5 | AD5: ='Billing Determinants'!AC19 -> 177402346.6
B6: General Svc Schedule 011/012 | D6: ='Billing Determinants'!C20 -> 57384870.78 | E6: ='Billing Determinants'!D20 -> 51158303.55 | F6: ='Billing Determinants'!E20 -> 52609259.19 | G6: ='Billing Determinants'!F20 -> 59969436.39 | H6: ='Billing Determinants'!G20 -> 67514674.55 | I6: ='Billing Determinants'!H20 -> 66175768.17 | J6: ='Billing Determinants'!I20 -> 60824854.04 | K6: ='Billing Determinants'!J20 -> 57642337.67 | L6: ='Billing Determinants'!K20 -> 50313004.49 | M6: ='Billing Determinants'!L20 -> 48799715.82 | N6: ='Billing Determinants'!M20 -> 50199193.22 | O6: ='Billing Determinants'!N20 -> 57934521.5 | P6: ='Billing Determinants'!O20 -> 57518232.07 | Q6: ='Billing Determinants'!P20 -> 51168047.44 | R6: ='Billing Determinants'!Q20 -> 53023975.41 | S6: ='Billing Determinants'!R20 -> 60307610.73 | T6: ='Billing Determinants'!S20 -> 67675694.46 | U6: ='Billing Determinants'!T20 -> 67356187.22 | V6: ='Billing Determinants'!U20 -> 61603730.85 | W6: ='Billing Determinants'!V20 -> 58644864.54 | X6: ='Billing Determinants'!W20 -> 50922850.61 | Y6: ='Billing Determinants'!X20 -> 49588145.1 | Z6: ='Billing Determinants'!Y20 -> 50973821.63 | AA6: ='Billing Determinants'!Z20 -> 58904769.94 | AB6: ='Billing Determinants'!AA20 -> 58530067.26 | AC6: ='Billing Determinants'!AB20 -> 51716360.91 | AD6: ='Billing Determinants'!AC20 -> 53899119.97
B7: Large Gen Svc Schedule 021/022 | D7: ='Billing Determinants'!C21 -> 112338964.9 | E7: ='Billing Determinants'!D21 -> 104825173.7 | F7: ='Billing Determinants'!E21 -> 116001079.1 | G7: ='Billing Determinants'!F21 -> 117082091.4 | H7: ='Billing Determinants'!G21 -> 113100785 | I7: ='Billing Determinants'!H21 -> 109129046 | J7: ='Billing Determinants'!I21 -> 106848952 | K7: ='Billing Determinants'!J21 -> 104370219.9 | L7: ='Billing Determinants'!K21 -> 101231853.4 | M7: ='Billing Determinants'!L21 -> 105586298.7 | N7: ='Billing Determinants'!M21 -> 109020288.3 | O7: ='Billing Determinants'!N21 -> 118413173.6 | P7: ='Billing Determinants'!O21 -> 109806639.4 | Q7: ='Billing Determinants'!P21 -> 102473332.9 | R7: ='Billing Determinants'!Q21 -> 114194166.4 | S7: ='Billing Determinants'!R21 -> 115084309 | T7: ='Billing Determinants'!S21 -> 111268549.4 | U7: ='Billing Determinants'!T21 -> 108719787.9 | V7: ='Billing Determinants'!U21 -> 105456170.8 | W7: ='Billing Determinants'!V21 -> 103309341.7 | X7: ='Billing Determinants'!W21 -> 99519722.2 | Y7: ='Billing Determinants'!X21 -> 104178700.1 | Z7: ='Billing Determinants'!Y21 -> 107997928.2 | AA7: ='Billing Determinants'!Z21 -> 117780625.7 | AB7: ='Billing Determinants'!AA21 -> 109442798.2 | AC7: ='Billing Determinants'!AB21 -> 101079915.9 | AD7: ='Billing Determinants'!AC21 -> 112842324.6
B8: Extra Large Gen Schedule 25/25I (1st & 2nd Block Only) | D8: ='Billing Determinants'!C22 -> 60430912.8 | E8: ='Billing Determinants'!D22 -> 50534307.4 | F8: ='Billing Determinants'!E22 -> 52769328 | G8: ='Billing Determinants'!F22 -> 57591762 | H8: ='Billing Determinants'!G22 -> 49831570 | I8: ='Billing Determinants'!H22 -> 60425160.6 | J8: ='Billing Determinants'!I22 -> 50766954 | K8: ='Billing Determinants'!J22 -> 55739145.2 | L8: ='Billing Determinants'!K22 -> 57763064 | M8: ='Billing Determinants'!L22 -> 50780495 | N8: ='Billing Determinants'!M22 -> 54466029 | O8: ='Billing Determinants'!N22 -> 51128029.4 | P8: ='Billing Determinants'!O22 -> 59757273.8 | Q8: ='Billing Determinants'!P22 -> 50316026.4 | R8: ='Billing Determinants'!Q22 -> 51172946 | S8: ='Billing Determinants'!R22 -> 57152985 | T8: ='Billing Determinants'!S22 -> 49027012 | U8: ='Billing Determinants'!T22 -> 59506312.6 | V8: ='Billing Determinants'!U22 -> 50054920 | W8: ='Billing Determinants'!V22 -> 54053229.2 | X8: ='Billing Determinants'!W22 -> 57717280 | Y8: ='Billing Determinants'!X22 -> 49911639 | Z8: ='Billing Determinants'!Y22 -> 53742315 | AA8: ='Billing Determinants'!Z22 -> 50736511.4 | AB8: ='Billing Determinants'!AA22 -> 58638031.8 | AC8: ='Billing Determinants'!AB22 -> 50343797.4 | AD8: ='Billing Determinants'!AC22 -> 50491311
B9: Pumping Schedule 31/32 | D9: ='Billing Determinants'!C23 -> 28309316.09 | E9: ='Billing Determinants'!D23 -> 22882087.7 | F9: ='Billing Determinants'!E23 -> 11844667.08 | G9: ='Billing Determinants'!F23 -> 2148535.059 | H9: ='Billing Determinants'!G23 -> 3425874.651 | I9: ='Billing Determinants'!H23 -> 4009939.911 | J9: ='Billing Determinants'!I23 -> 4379445.348 | K9: ='Billing Determinants'!J23 -> 4230011.22 | L9: ='Billing Determinants'!K23 -> 6236383.365 | M9: ='Billing Determinants'!L23 -> 13497389.69 | N9: ='Billing Determinants'!M23 -> 21867571.97 | O9: ='Billing Determinants'!N23 -> 25045393.69 | P9: ='Billing Determinants'!O23 -> 28320609.57 | Q9: ='Billing Determinants'!P23 -> 22455024.31 | R9: ='Billing Determinants'!Q23 -> 11917494.5 | S9: ='Billing Determinants'!R23 -> 2465369.786 | T9: ='Billing Determinants'!S23 -> 3467393.658 | U9: ='Billing Determinants'!T23 -> 4137155.657 | V9: ='Billing Determinants'!U23 -> 4350092.814 | W9: ='Billing Determinants'!V23 -> 4184404.49 | X9: ='Billing Determinants'!W23 -> 6150907.062 | Y9: ='Billing Determinants'!X23 -> 13006276.19 | Z9: ='Billing Determinants'!Y23 -> 21113767.44 | AA9: ='Billing Determinants'!Z23 -> 25239808.72 | AB9: ='Billing Determinants'!AA23 -> 28201935.4 | AC9: ='Billing Determinants'!AB23 -> 22464573.92 | AD9: ='Billing Determinants'!AC23 -> 12608230
B10: Street and Area Lights* | D10: 358587.3505 | E10: 357429.8946 | F10: 357259.3565 | G10: ='Billing Determinants'!F24 -> 1330329.701 | H10: ='Billing Determinants'!G24 -> 1338864.115 | I10: ='Billing Determinants'!H24 -> 1340188.065 | J10: ='Billing Determinants'!I24 -> 1272098.586 | K10: ='Billing Determinants'!J24 -> 1353925.382 | L10: ='Billing Determinants'!K24 -> 1292839.656 | M10: ='Billing Determinants'!L24 -> 1297017.579 | N10: ='Billing Determinants'!M24 -> 1313152.508 | O10: ='Billing Determinants'!N24 -> 1314340.399 | P10: ='Billing Determinants'!O24 -> 1313371.656 | Q10: ='Billing Determinants'!P24 -> 1318741.236 | R10: ='Billing Determinants'!Q24 -> 1283836.714 | S10: ='Billing Determinants'!R24 -> 1303362.031 | T10: ='Billing Determinants'!S24 -> 1306376.54 | U10: ='Billing Determinants'!T24 -> 1324673.318 | V10: ='Billing Determinants'!U24 -> 1249320.633 | W10: ='Billing Determinants'!V24 -> 1328407.076 | X10: ='Billing Determinants'!W24 -> 1270504.385 | Y10: ='Billing Determinants'!X24 -> 1273798.087 | Z10: ='Billing Determinants'!Y24 -> 1287598.232 | AA10: ='Billing Determinants'!Z24 -> 1291310.38 | AB10: ='Billing Determinants'!AA24 -> 1287442.068 | AC10: ='Billing Determinants'!AB24 -> 1293084.101 | AD10: ='Billing Determinants'!AC24 -> 1260162.708
A11: Total Forecasted Usage | D11: =SUM(D5:D10) -> 475032149.7 | E11: 394135442.4 | F11: 407720710 | G11: 474068162.6 | H11: 532668230.9 | I11: 542845478.3 | J11: 479952298.1 | K11: 449176699.8 | L11: 399320132.2 | M11: 383719989.3 | N11: =SUM(N5:N10) -> 398109084.6 | O11: 446611476.7 | P11: 466780543.5 | Q11: 391979425.1 | R11: =SUM(R5:R10) -> 406743492.2 | S11: 467111090.5 | T11: 531014015.5 | U11: 543000695.7 | V11: 481316460.3 | W11: 451644526.3 | X11: 402677037.3 | Y11: 386277941.9 | Z11: 398798838.2 | AA11: 446664557.6 | AB11: 466181567.5 | AC11: 392364115.8 | AD11: =SUM(AD5:AD10) -> 408503494.8
G12: =G11-'Billing Determinants'!F25 -> 0 | H12: =H11-'Billing Determinants'!G25 -> 0 | I12: =I11-'Billing Determinants'!H25 -> 0 | J12: =J11-'Billing Determinants'!I25 -> 0 | K12: =K11-'Billing Determinants'!J25 -> 0 | L12: =L11-'Billing Determinants'!K25 -> 0 | M12: =M11-'Billing Determinants'!L25 -> 0 | N12: =N11-'Billing Determinants'!M25 -> 0 | O12: =O11-'Billing Determinants'!N25 -> 0 | P12: =P11-'Billing Determinants'!O25 -> 0 | Q12: =Q11-'Billing Determinants'!P25 -> 0 | R12: =R11-'Billing Determinants'!Q25 -> 0 | S12: =S11-'Billing Determinants'!R25 -> 0 | T12: =T11-'Billing Determinants'!S25 -> 0 | U12: =U11-'Billing Determinants'!T25 -> 0 | V12: =V11-'Billing Determinants'!U25 -> 0 | W12: =W11-'Billing Determinants'!V25 -> 0 | X12: =X11-'Billing Determinants'!W25 -> 0 | Y12: =Y11-'Billing Determinants'!X25 -> 0 | Z12: =Z11-'Billing Determinants'!Y25 -> 0 | AA12: =AA11-'Billing Determinants'!Z25 -> 0 | AB12: =AB11-'Billing Determinants'!AA25 -> 0 | AC12: =AC11-'Billing Determinants'!AB25 -> 0 | AD12: =AD11-'Billing Determinants'!AC25 -> 0
A13: *Current LIRAP rate for street and area lights is a percentage of base revenue. Therefore, forecasted base revenue by month is included for June 2023 - October 2023 before new rates go into effect November 1, 2023 at a per kwh rate.
A14: LIRAP Rates
B15: Residential Schedule 001 | D15: ='WA Electric - Sched 92'!D9 -> 0.00179 | E15: =D15 -> 0.00179 | F15: =E15 -> 0.00179 | G15: ='WA Electric - Sched 92'!$D$23 -> 0.00333503849 | H15: ='WA Electric - Sched 92'!$D$23 -> 0.00333503849 | I15: ='WA Electric - Sched 92'!$D$23 -> 0.00333503849 | J15: ='WA Electric - Sched 92'!$D$23 -> 0.00333503849 | K15: ='WA Electric - Sched 92'!$D$23 -> 0.00333503849 | L15: ='WA Electric - Sched 92'!$D$23 -> 0.00333503849 | M15: ='WA Electric - Sched 92'!$D$23 -> 0.00333503849 | N15: ='WA Electric - Sched 92'!$D$23 -> 0.00333503849 | O15: ='WA Electric - Sched 92'!$D$23 -> 0.00333503849 | P15: ='WA Electric - Sched 92'!$D$23 -> 0.00333503849 | Q15: ='WA Electric - Sched 92'!$D$23 -> 0.00333503849 | R15: ='WA Electric - Sched 92'!$D$23 -> 0.00333503849 | S15: ='WA Electric - Sched 92'!$D$23 -> 0.00333503849 | T15: ='WA Electric - Sched 92'!$D$23 -> 0.00333503849 | U15: ='WA Electric - Sched 92'!$D$23 -> 0.00333503849 | V15: ='WA Electric - Sched 92'!$D$23 -> 0.00333503849 | W15: ='WA Electric - Sched 92'!$D$23 -> 0.00333503849 | X15: ='WA Electric - Sched 92'!$D$23 -> 0.00333503849 | Y15: ='WA Electric - Sched 92'!$D$23 -> 0.00333503849 | Z15: ='WA Electric - Sched 92'!$D$23 -> 0.00333503849 | AA15: ='WA Electric - Sched 92'!$D$23 -> 0.00333503849 | AB15: ='WA Electric - Sched 92'!$D$23 -> 0.00333503849 | AC15: ='WA Electric - Sched 92'!$D$23 -> 0.00333503849 | AD15: ='WA Electric - Sched 92'!$D$23 -> 0.00333503849
B16: General Svc Schedule 011/012 | D16: ='WA Electric - Sched 92'!E9 -> 0.0026 | E16: =D16 -> 0.0026 | F16: =E16 -> 0.0026 | G16: ='WA Electric - Sched 92'!$E$23 -> 0.003814775374 | H16: ='WA Electric - Sched 92'!$E$23 -> 0.003814775374 | I16: ='WA Electric - Sched 92'!$E$23 -> 0.003814775374 | J16: ='WA Electric - Sched 92'!$E$23 -> 0.003814775374 | K16: ='WA Electric - Sched 92'!$E$23 -> 0.003814775374 | L16: ='WA Electric - Sched 92'!$E$23 -> 0.003814775374 | M16: ='WA Electric - Sched 92'!$E$23 -> 0.003814775374 | N16: ='WA Electric - Sched 92'!$E$23 -> 0.003814775374 | O16: ='WA Electric - Sched 92'!$E$23 -> 0.003814775374 | P16: ='WA Electric - Sched 92'!$E$23 -> 0.003814775374 | Q16: ='WA Electric - Sched 92'!$E$23 -> 0.003814775374 | R16: ='WA Electric - Sched 92'!$E$23 -> 0.003814775374 | S16: ='WA Electric - Sched 92'!$E$23 -> 0.003814775374 | T16: ='WA Electric - Sched 92'!$E$23 -> 0.003814775374 | U16: ='WA Electric - Sched 92'!$E$23 -> 0.003814775374 | V16: ='WA Electric - Sched 92'!$E$23 -> 0.003814775374 | W16: ='WA Electric - Sched 92'!$E$23 -> 0.003814775374 | X16: ='WA Electric - Sched 92'!$E$23 -> 0.003814775374 | Y16: ='WA Electric - Sched 92'!$E$23 -> 0.003814775374 | Z16: ='WA Electric - Sched 92'!$E$23 -> 0.003814775374 | AA16: ='WA Electric - Sched 92'!$E$23 -> 0.003814775374 | AB16: ='WA Electric - Sched 92'!$E$23 -> 0.003814775374 | AC16: ='WA Electric - Sched 92'!$E$23 -> 0.003814775374 | AD16: ='WA Electric - Sched 92'!$E$23 -> 0.003814775374
B17: Large Gen Svc Schedule 021/022 | D17: ='WA Electric - Sched 92'!F9 -> 0.00186 | E17: 0.00186 | F17: =E17 -> 0.00186 | G17: ='WA Electric - Sched 92'!$F$23 -> 0.003185855819 | H17: ='WA Electric - Sched 92'!$F$23 -> 0.003185855819 | I17: ='WA Electric - Sched 92'!$F$23 -> 0.003185855819 | J17: ='WA Electric - Sched 92'!$F$23 -> 0.003185855819 | K17: ='WA Electric - Sched 92'!$F$23 -> 0.003185855819 | L17: ='WA Electric - Sched 92'!$F$23 -> 0.003185855819 | M17: ='WA Electric - Sched 92'!$F$23 -> 0.003185855819 | N17: ='WA Electric - Sched 92'!$F$23 -> 0.003185855819 | O17: ='WA Electric - Sched 92'!$F$23 -> 0.003185855819 | P17: ='WA Electric - Sched 92'!$F$23 -> 0.003185855819 | Q17: ='WA Electric - Sched 92'!$F$23 -> 0.003185855819 | R17: ='WA Electric - Sched 92'!$F$23 -> 0.003185855819 | S17: ='WA Electric - Sched 92'!$F$23 -> 0.003185855819 | T17: ='WA Electric - Sched 92'!$F$23 -> 0.003185855819 | U17: ='WA Electric - Sched 92'!$F$23 -> 0.003185855819 | V17: ='WA Electric - Sched 92'!$F$23 -> 0.003185855819 | W17: ='WA Electric - Sched 92'!$F$23 -> 0.003185855819 | X17: ='WA Electric - Sched 92'!$F$23 -> 0.003185855819 | Y17: ='WA Electric - Sched 92'!$F$23 -> 0.003185855819 | Z17: ='WA Electric - Sched 92'!$F$23 -> 0.003185855819 | AA17: ='WA Electric - Sched 92'!$F$23 -> 0.003185855819 | AB17: ='WA Electric - Sched 92'!$F$23 -> 0.003185855819 | AC17: ='WA Electric - Sched 92'!$F$23 -> 0.003185855819 | AD17: ='WA Electric - Sched 92'!$F$23 -> 0.003185855819
B18: Extra Large Gen Schedule 25/25I (1st & 2nd Block Only) | D18: ='WA Electric - Sched 92'!G9 -> 0.00118 | E18: 0.00118 | F18: =E18 -> 0.00118 | G18: ='WA Electric - Sched 92'!$G$23 -> 0.002356086434 | H18: ='WA Electric - Sched 92'!$G$23 -> 0.002356086434 | I18: ='WA Electric - Sched 92'!$G$23 -> 0.002356086434 | J18: ='WA Electric - Sched 92'!$G$23 -> 0.002356086434 | K18: ='WA Electric - Sched 92'!$G$23 -> 0.002356086434 | L18: ='WA Electric - Sched 92'!$G$23 -> 0.002356086434 | M18: ='WA Electric - Sched 92'!$G$23 -> 0.002356086434 | N18: ='WA Electric - Sched 92'!$G$23 -> 0.002356086434 | O18: ='WA Electric - Sched 92'!$G$23 -> 0.002356086434 | P18: ='WA Electric - Sched 92'!$G$23 -> 0.002356086434 | Q18: ='WA Electric - Sched 92'!$G$23 -> 0.002356086434 | R18: ='WA Electric - Sched 92'!$G$23 -> 0.002356086434 | S18: ='WA Electric - Sched 92'!$G$23 -> 0.002356086434 | T18: ='WA Electric - Sched 92'!$G$23 -> 0.002356086434 | U18: ='WA Electric - Sched 92'!$G$23 -> 0.002356086434 | V18: ='WA Electric - Sched 92'!$G$23 -> 0.002356086434 | W18: ='WA Electric - Sched 92'!$G$23 -> 0.002356086434 | X18: ='WA Electric - Sched 92'!$G$23 -> 0.002356086434 | Y18: ='WA Electric - Sched 92'!$G$23 -> 0.002356086434 | Z18: ='WA Electric - Sched 92'!$G$23 -> 0.002356086434 | AA18: ='WA Electric - Sched 92'!$G$23 -> 0.002356086434 | AB18: ='WA Electric - Sched 92'!$G$23 -> 0.002356086434 | AC18: ='WA Electric - Sched 92'!$G$23 -> 0.002356086434 | AD18: ='WA Electric - Sched 92'!$G$23 -> 0.002356086434
B19: Pumping Schedule 31/32 | D19: ='WA Electric - Sched 92'!H9 -> 0.00162 | E19: 0.00162 | F19: =E19 -> 0.00162 | G19: ='WA Electric - Sched 92'!$H$23 -> 0.003337149571 | H19: ='WA Electric - Sched 92'!$H$23 -> 0.003337149571 | I19: ='WA Electric - Sched 92'!$H$23 -> 0.003337149571 | J19: ='WA Electric - Sched 92'!$H$23 -> 0.003337149571 | K19: ='WA Electric - Sched 92'!$H$23 -> 0.003337149571 | L19: ='WA Electric - Sched 92'!$H$23 -> 0.003337149571 | M19: ='WA Electric - Sched 92'!$H$23 -> 0.003337149571 | N19: ='WA Electric - Sched 92'!$H$23 -> 0.003337149571 | O19: ='WA Electric - Sched 92'!$H$23 -> 0.003337149571 | P19: ='WA Electric - Sched 92'!$H$23 -> 0.003337149571 | Q19: ='WA Electric - Sched 92'!$H$23 -> 0.003337149571 | R19: ='WA Electric - Sched 92'!$H$23 -> 0.003337149571 | S19: ='WA Electric - Sched 92'!$H$23 -> 0.003337149571 | T19: ='WA Electric - Sched 92'!$H$23 -> 0.003337149571 | U19: ='WA Electric - Sched 92'!$H$23 -> 0.003337149571 | V19: ='WA Electric - Sched 92'!$H$23 -> 0.003337149571 | W19: ='WA Electric - Sched 92'!$H$23 -> 0.003337149571 | X19: ='WA Electric - Sched 92'!$H$23 -> 0.003337149571 | Y19: ='WA Electric - Sched 92'!$H$23 -> 0.003337149571 | Z19: ='WA Electric - Sched 92'!$H$23 -> 0.003337149571 | AA19: ='WA Electric - Sched 92'!$H$23 -> 0.003337149571 | AB19: ='WA Electric - Sched 92'!$H$23 -> 0.003337149571 | AC19: ='WA Electric - Sched 92'!$H$23 -> 0.003337149571 | AD19: ='WA Electric - Sched 92'!$H$23 -> 0.003337149571
B20: Street and Area Lights | D20: ='WA Electric - Sched 92'!I9 -> 0.021 | E20: 0.021 | F20: =E20 -> 0.021 | G20: ='WA Electric - Sched 92'!$I$23 -> 0.01477967522 | H20: ='WA Electric - Sched 92'!$I$23 -> 0.01477967522 | I20: ='WA Electric - Sched 92'!$I$23 -> 0.01477967522 | J20: ='WA Electric - Sched 92'!$I$23 -> 0.01477967522 | K20: ='WA Electric - Sched 92'!$I$23 -> 0.01477967522 | L20: ='WA Electric - Sched 92'!$I$23 -> 0.01477967522 | M20: ='WA Electric - Sched 92'!$I$23 -> 0.01477967522 | N20: ='WA Electric - Sched 92'!$I$23 -> 0.01477967522 | O20: ='WA Electric - Sched 92'!$I$23 -> 0.01477967522 | P20: ='WA Electric - Sched 92'!$I$23 -> 0.01477967522 | Q20: ='WA Electric - Sched 92'!$I$23 -> 0.01477967522 | R20: ='WA Electric - Sched 92'!$I$23 -> 0.01477967522 | S20: ='WA Electric - Sched 92'!$I$23 -> 0.01477967522 | T20: ='WA Electric - Sched 92'!$I$23 -> 0.01477967522 | U20: ='WA Electric - Sched 92'!$I$23 -> 0.01477967522 | V20: ='WA Electric - Sched 92'!$I$23 -> 0.01477967522 | W20: ='WA Electric - Sched 92'!$I$23 -> 0.01477967522 | X20: ='WA Electric - Sched 92'!$I$23 -> 0.01477967522 | Y20: ='WA Electric - Sched 92'!$I$23 -> 0.01477967522 | Z20: ='WA Electric - Sched 92'!$I$23 -> 0.01477967522 | AA20: ='WA Electric - Sched 92'!$I$23 -> 0.01477967522 | AB20: ='WA Electric - Sched 92'!$I$23 -> 0.01477967522 | AC20: ='WA Electric - Sched 92'!$I$23 -> 0.01477967522 | AD20: ='WA Electric - Sched 92'!$I$23 -> 0.01477967522
A23: Gross LIRAP Revenue | D23: =D4 -> 2023-08-31 | E23: 2023-09-30 | F23: 2023-10-30 | G23: 2023-11-30 | H23: 2023-12-30 | I23: 2024-01-30 | J23: 2024-02-29 | K23: 2024-03-29 | L23: 2024-04-29 | M23: 2024-05-29 | N23: 2024-06-29 | O23: 2024-07-29 | P23: 2024-08-29 | Q23: 2024-09-29 | R23: =R4 -> 2024-10-29 | S23: 2024-11-29 | T23: 2024-12-29 | U23: 2025-01-29 | V23: 2025-02-28 | W23: 2025-03-28 | X23: 2025-04-28 | Y23: 2025-05-28 | Z23: 2025-06-28 | AA23: 2025-07-28 | AB23: 2025-08-28 | AC23: 2025-09-28 | AD23: =AD4 -> 2025-10-28
B24: Residential Schedule 001 | D24: =D5*D15 -> 387015.001 | E24: =E5*E15 -> 294236.8709 | F24: 311709.0198 | G24: 786889.0183 | H24: 992028.7518 | I24: 1006399.142 | J24: 853302.9284 | K24: 753188.6293 | L24: 608587.7863 | M24: 546142.81 | N24: =N5*N15 -> 537751.1097 | O24: 642915.4405 | P24: 700572.9161 | Q24: =Q5*Q15 -> 547774.2451 | R24: =R5*R15 -> 584135.5705 | S24: 769718.3925 | T24: 994738.5603 | U24: 1007036.813 | V24: 862448.3744 | W24: 767473.3291 | X24: 623971.6044 | Y24: 561351.6224 | Z24: 545890.4651 | AA24: 642700.3749 | AB24: 700629.1975 | AC24: 551836.7578 | AD24: =AD5*AD15 -> 591643.654
B25: General Svc Schedule 011/012 | D25: =D6*D16 -> 149200.664 | E25: =E6*E16 -> 133011.5892 | F25: 136784.0739 | G25: 228769.9291 | H25: 257553.3178 | I25: 252445.6908 | J25: 232033.1553 | K25: 219892.5702 | L25: 191932.8105 | M25: 186159.9542 | N25: =N6*N16 -> 191498.6461 | O25: 221007.1859 | P25: 219419.1353 | Q25: 195194.6073 | R25: =R6*R16 -> 202274.5556 | S25: 230059.9882 | T25: 258167.5726 | U25: 256948.7243 | V25: 235004.3954 | W25: 223716.985 | X25: 194259.2365 | Y25: 189167.6348 | Z25: 194453.6795 | AA25: 224708.4657 | AB25: 223279.0592 | AC25: 197286.3 | AD25: =AD6*AD16 -> 205613.0355
B26: Large Gen Svc Schedule 021/022 | D26: 208950.4747 | E26: =E7*E17 -> 194974.8231 | F26: 215762.0072 | G26: 373006.6622 | H26: 360322.7941 | I26: 347669.4063 | J26: 340405.3556 | K26: 332508.4724 | L26: 322510.0894 | M26: 336382.7242 | N26: =N7*N17 -> 347322.92 | O26: 377247.2981 | P26: 349828.1211 | Q26: 326465.2639 | R26: =R7*R17 -> 363806.1496 | S26: 366642.0156 | T26: 354485.5556 | U26: 346365.569 | V26: 335968.1555 | W26: 329128.6673 | X26: 317055.4861 | Y26: 331898.3178 | Z26: 344065.8279 | AA26: 375232.0919 | AB26: 348668.9756 | AC26: 322026.0384 | AD26: =AD7*AD17 -> 359499.3765
B27: Extra Large Gen Schedule 25/25I | D27: 71308.4771 | E27: =E8*E18 -> 59630.48273 | F27: 62267.80704 | G27: 135691.1691 | H27: 117407.486 | I27: 142366.9011 | J27: 119611.3316 | K27: 131326.2438 | L27: 136094.7715 | M27: 119643.2354 | N27: =N8*N18 -> 128326.672 | O27: 120462.0565 | P27: 140793.3021 | Q27: 118548.9072 | R27: =R8*R18 -> 120567.8838 | S27: 134657.3726 | T27: 115511.8779 | U27: 140202.0158 | V27: 117933.718 | W27: 127354.08 | X27: 135986.9004 | Y27: 117596.1355 | Z27: 126621.5393 | AA27: 119539.6062 | AB27: 138156.2712 | AC27: 118614.3381 | AD27: =AD8*AD18 -> 118961.8929
B28: Pumping Schedule 31/32 | D28: 45861.09207 | E28: =E9*E19 -> 37068.98207 | F28: 19188.36067 | G28: 7169.98285 | H28: 11432.65612 | I28: 13381.76926 | J28: 14614.86417 | K28: 14116.18013 | L28: 20811.74407 | M28: 45042.80821 | N28: =N9*N19 -> 72975.35843 | O28: 83580.22483 | P28: 94510.11008 | Q28: 74935.77477 | R28: =R9*R19 -> 39770.46165 | S28: 8227.307725 | T28: 11571.21126 | U28: 13806.30723 | V28: 14516.91037 | W28: 13963.98365 | X28: 20526.49686 | Y28: 43403.88902 | Z28: 70459.79995 | AA28: 84229.01684 | AB28: 94114.07661 | AC28: 74967.64324 | AD28: =AD9*AD19 -> 42075.54934
B29: Street and Area Lights | D29: 7530.33436 | E29: =E10*E20 -> 7506.027786 | F29: 7502.446486 | G29: 19661.84092 | H29: =H10*H20 -> 19787.97679 | I29: 19807.54433 | J29: 18801.20394 | K29: 20010.57742 | L29: 19107.75023 | M29: =M10*M20 -> 19169.49858 | N29: =N10*N20 -> 19407.96758 | O29: 19425.52423 | P29: 19411.20651 | Q29: 19490.56717 | R29: =R10*R20 -> 18974.68966 | S29: 19263.26751 | T29: 19307.82097 | U29: 19578.24141 | V29: 18464.5532 | W29: 19633.42515 | X29: 18777.64217 | Y29: 18826.32202 | Z29: 19030.28368 | AA29: 19085.14802 | AB29: 19027.97562 | AC29: 19111.36304 | AD29: =AD10*AD20 -> 18624.79555
B30: Total | D30: =SUM(D24:D29) -> 869866.0432 | E30: 726428.7758 | F30: 753213.7151 | G30: 1551188.603 | H30: 1758532.983 | I30: 1782070.454 | J30: 1578768.839 | K30: =SUM(K24:K29) -> 1471042.673 | L30: 1299044.952 | M30: 1252541.03 | N30: =SUM(N24:N29) -> 1297282.674 | O30: 1464637.73 | P30: 1524534.791 | Q30: 1282409.365 | R30: =SUM(R24:R29) -> 1329529.311 | S30: 1528568.344 | T30: 1753782.599 | U30: 1783937.671 | V30: 1584336.107 | W30: 1481270.47 | X30: 1310577.366 | Y30: 1262243.922 | Z30: 1300521.595 | AA30: 1465494.704 | AB30: 1523875.556 | AC30: 1283842.441 | AD30: =SUM(AD24:AD29) -> 1336418.304 | AE30: =SUM(F30:Q30)-'WA Electric - Sched 92'!D39 -> -576315.5958
A32: Net LIRAP Revenue | C32: ='Rev Conv Factor'!E22 -> 0.9560685519 | D32: =D4 -> 2023-08-31 | E32: 2023-09-30 | F32: 2023-10-30 | G32: 2023-11-30 | H32: 2023-12-30 | I32: 2024-01-30 | J32: 2024-02-29 | K32: 2024-03-29 | L32: 2024-04-29 | M32: 2024-05-29 | N32: 2024-06-29 | O32: 2024-07-29 | P32: 2024-08-29 | Q32: 2024-09-29 | R32: =R4 -> 2024-10-29 | S32: 2024-11-29 | T32: 2024-12-29 | U32: 2025-01-29 | V32: 2025-02-28 | W32: 2025-03-28 | X32: 2025-04-28 | Y32: 2025-05-28 | Z32: 2025-06-28 | AA32: 2025-07-28 | AB32: 2025-08-28 | AC32: 2025-09-28 | AD32: =AD4 -> 2025-10-28
B33: Residential Schedule 001 | D33: =D24*$C$32 -> 370012.8715 | E33: =E24*$C$32 -> 281310.6191 | F33: 298015.1912 | G33: 752319.8442 | H33: 948447.4922 | I33: 962186.5707 | J33: 815816.095 | K33: 720099.9621 | L33: 581851.6436 | M33: 522149.9655 | N33: =N24*$C$32 -> 514126.9247 | O33: 614671.2341 | P33: 669795.7334 | Q33: =Q24*$C$32 -> 523709.7292 | R33: =R24*$C$32 -> 558473.649 | S33: 735903.5488 | T33: 951038.2548 | U33: 962796.2276 | V33: 824559.7684 | W33: 733757.1143 | X33: 596559.6283 | Y33: 536690.6327 | Z33: 521908.7065 | AA33: 614465.6167 | AB33: 669849.5422 | AC33: 527593.7699 | AD33: =AD24*$C$32 -> 565651.8915
B34: General Svc Schedule 011/012 | D34: =D25*$C$32 -> 142646.0628 | E34: 127168.1975 | F34: 130774.9514 | G34: 218719.7348 | H34: 246238.6276 | I34: 241355.386 | J34: 221839.6028 | K34: 210232.3712 | L34: 183500.9242 | M34: 177981.6778 | N34: =N25*$C$32 -> 183085.8332 | O34: 211298.0202 | P34: 209779.7349 | Q34: 186619.4255 | R34: =R25*$C$32 -> 193388.3415 | S34: 219953.1198 | T34: 246825.8973 | U34: 245660.5947 | V34: 224680.312 | W34: 213888.7739 | X34: 185725.1469 | Y34: 180857.2266 | Z34: 185911.0477 | AA34: 214836.6974 | AB34: 213470.0868 | AC34: 188619.2272 | AD34: =AD25*$C$32 -> 196580.1571
B35: Large Gen Svc Schedule 021/022 | D35: =D26*$C$32 -> 199770.9778 | E35: 186409.2968 | F35: 206283.2698 | G35: 356619.9394 | H35: 344493.292 | I35: 332395.7858 | J35: 325450.8554 | K35: 317900.8937 | L35: 308341.7541 | M35: 321604.944 | N35: =N26*$C$32 -> 332064.5211 | O35: 360674.278 | P35: 334459.6652 | Q35: 312123.1721 | R35: =R26*$C$32 -> 347823.6186 | S35: 350534.9009 | T35: 338912.4918 | U35: 331149.228 | V35: 321208.5879 | W35: 314669.5684 | X35: 303126.7795 | Y35: 317317.5441 | Z35: 328950.5178 | AA35: 358747.6027 | AB35: 333351.4426 | AC35: 307878.9682 | AD35: =AD26*$C$32 -> 343706.0483
B36: Extra Large Gen Schedule 25/25I | D36: =D27*$C$32 -> 68175.79244 | E36: 57010.82927 | F36: 59532.29211 | G36: 129730.0596 | H36: 112249.6052 | I36: 136112.517 | J36: 114356.6326 | K36: 125556.8918 | L36: 130115.9311 | M36: 114387.1348 | N36: =N27*$C$32 -> 122689.0955 | O36: 115169.9839 | P36: 134608.0485 | Q36: 113340.882 | R36: =R27*$C$32 -> 115271.1621 | S36: 128741.6792 | T36: 110437.2738 | U36: 134042.7383 | V36: 112752.7189 | W36: 121759.2309 | X36: 130012.7989 | Y36: 112429.967 | Z36: 121058.8717 | AA36: 114288.0582 | AB36: 132086.8662 | AC36: 113403.4384 | AD36: =AD27*$C$32 -> 113735.7246
B37: Pumping Schedule 31/32 | D37: =D28*$C$32 -> 43846.34788 | E37: 35440.48801 | F37: 18345.3882 | G37: 6854.99512 | H37: 10930.40298 | I37: 12793.88875 | J37: 13972.81202 | K37: 13496.0359 | L37: 19897.45402 | M37: 43064.01242 | N37: =N28*$C$32 -> 69769.44526 | O37: 79908.42452 | P37: 90358.14408 | Q37: 71643.73766 | R37: =R28*$C$32 -> 38023.28767 | S37: 7865.870182 | T37: 11062.87119 | U37: 13199.77616 | V37: 13879.16147 | W37: 13350.52563 | X37: 19624.73813 | Y37: 41497.09333 | Z37: 67364.3989 | AA37: 80528.71415 | AB37: 89979.50894 | AC37: 71674.20611 | AD37: =AD28*$C$32 -> 40227.10952
B38: Street and Area Lights | D38: =D29*$C$32 -> 7199.515867 | E38: 7176.277115 | F38: 7172.853147 | G38: 18798.06777 | H38: 18918.66231 | I38: 18937.37022 | J38: 17975.23983 | K38: 19131.48378 | L38: 18268.31909 | M38: 18327.35475 | N38: =N29*$C$32 -> 18555.34746 | O38: 18572.13282 | P38: 18558.4441 | Q38: 18634.31833 | R38: =R29*$C$32 -> 18141.10407 | S38: 18417.00428 | T38: 18459.60044 | U38: 18718.14091 | V38: 17653.37863 | W38: 18770.90035 | X38: 17952.71315 | Y38: 17999.25443 | Z38: 18194.25576 | AA38: 18246.70983 | AB38: 18192.0491 | AC38: 18271.77319 | AD38: =AD29*$C$32 -> 17806.58131
B39: Total | D39: =SUM(D33:D38) -> 831651.5683 | E39: 694515.7077 | F39: 720123.9459 | G39: 1483042.641 | H39: 1681278.082 | I39: 1703781.519 | J39: 1509411.238 | K39: 1406417.638 | L39: 1241976.026 | M39: 1197515.089 | N39: =SUM(N33:N38) -> 1240291.167 | O39: 1400294.074 | P39: 1457559.77 | Q39: 1226071.265 | R39: =SUM(R33:R38) -> 1271121.163 | S39: 1461416.123 | T39: 1676736.389 | U39: 1705566.706 | V39: 1514733.927 | W39: 1416196.113 | X39: 1253001.805 | Y39: 1206791.718 | Z39: 1243387.798 | AA39: 1401113.399 | AB39: 1456929.496 | AC39: 1227441.383 | AD39: =SUM(AD33:AD38) -> 1277707.512 | AE39: =SUM(F39:Q39)-'WA Electric - Sched 92'!D42 -> -550997.2171

Sheet Billing Determinants
A4: Forecasted Loads
C7: 2023-08-31 | D7: =EDATE(C7, 1) -> 2023-09-30 | E7: =EDATE(D7, 1) -> 2023-10-30 | F7: =EDATE(E7, 1) -> 2023-11-30 | G7: 2023-12-30 | H7: 2024-01-30 | I7: 2024-02-29 | J7: 2024-03-29 | K7: 2024-04-29 | L7: 2024-05-29 | M7: 2024-06-29 | N7: 2024-07-29 | O7: 2024-08-29 | P7: 2024-09-29 | Q7: 2024-10-29 | R7: 2024-11-29 | S7: 2024-12-29 | T7: 2025-01-29 | U7: 2025-02-28 | V7: 2025-03-28 | W7: 2025-04-28 | X7: 2025-05-28 | Y7: 2025-06-28 | Z7: 2025-07-28 | AA7: 2025-08-28 | AB7: 2025-09-28 | AC7: 2025-10-28
A8: WA001/002 | C8: =C32+C33 -> 216209497.8 | D8: 164378140.2 | E8: 174139117.2 | F8: 235946008 | G8: 297456462.6 | H8: 301765375.5 | I8: 255859994.1 | J8: 225841060.5 | K8: 182482987.3 | L8: 163759072.5 | M8: 161242849.6 | N8: 192776018.1 | O8: 210064417 | P8: 164248252.8 | Q8: 175151073.1 | R8: 230797454 | S8: 298268989.5 | T8: 301956578.9 | U8: 258602225.1 | V8: 230124279.3 | W8: 187095773 | X8: 168319383.4 | Y8: 163683407.8 | Z8: 192711531.4 | AA8: 210081292.8 | AB8: 165466383.5 | AC8: =AC32+AC33 -> 177402346.6
A9: WA011/013 | C9: =C34+C36 -> 52746141.43 | D9: 46952302.84 | E9: 47689666.42 | F9: 53375183.45 | G9: 58901607.97 | H9: 57556131.8 | I9: 53423616.01 | J9: 50956725.38 | K9: 45252606.67 | L9: 44381561.95 | M9: 45929470.68 | N9: 53267840.22 | O9: 52837226.73 | P9: 46928856.36 | Q9: 48085231.54 | R9: 53549576.97 | S9: 59084818.09 | T9: 58579596.7 | U9: 54068143.02 | V9: 51718225.55 | W9: 45702452.57 | X9: 45061003.19 | Y9: 46581425.61 | Z9: 54048294.11 | AA9: 53699989.3 | AB9: 47404873.91 | AC9: =AC34+AC36 -> 48830991.87
A10: WA012 | C10: =C35 -> 4638729.349 | D10: 4206000.716 | E10: 4919592.768 | F10: 6594252.941 | G10: 8613066.579 | H10: 8619636.379 | I10: 7401238.036 | J10: 6685612.29 | K10: 5060397.822 | L10: 4418153.872 | M10: 4269722.546 | N10: 4666681.28 | O10: 4681005.349 | P10: 4239191.074 | Q10: 4938743.876 | R10: 6758033.751 | S10: 8590876.374 | T10: 8776590.528 | U10: 7535587.83 | V10: 6926638.988 | W10: 5220398.039 | X10: 4527141.914 | Y10: 4392396.028 | Z10: 4856475.827 | AA10: 4830077.959 | AB10: 4311487.002 | AC10: =AC35 -> 5068128.099
A11: WA021/023 | C11: =C37+C39 -> 109937207.6 | D11: 102698715.5 | E11: 113671852.8 | F11: 114410353.8 | G11: 109555859.5 | H11: 105663615.1 | I11: 103976370.9 | J11: 101691890 | K11: 99058312.71 | L11: 103575969.2 | M11: 107032639.8 | N11: 116013325.4 | O11: 107426392.8 | P11: 100372724.1 | Q11: 111850659.1 | R11: 112395136.6 | S11: 107832425.9 | T11: 105248131.5 | U11: 102576888.8 | V11: 100631120.6 | W11: 97331357.47 | X11: 102152947.6 | Y11: 105971785.8 | Z11: 115344695.8 | AA11: 107038654.6 | AB11: 98986003.29 | AC11: =AC37+AC39 -> 110473787.8
A12: WA022 | C12: =C38 -> 2401757.264 | D12: 2126458.209 | E12: 2329226.347 | F12: 2671737.571 | G12: 3544925.525 | H12: 3465430.973 | I12: 2872581.188 | J12: 2678329.894 | K12: 2173540.738 | L12: 2010329.508 | M12: 1987648.506 | N12: 2399848.189 | O12: 2380246.557 | P12: 2100608.745 | Q12: 2343507.282 | R12: 2689172.432 | S12: 3436123.477 | T12: 3471656.469 | U12: 2879282.023 | V12: 2678221.091 | W12: 2188364.732 | X12: 2025752.509 | Y12: 2026142.397 | Z12: 2435929.907 | AA12: 2404143.669 | AB12: 2093912.663 | AC12: =AC38 -> 2368536.774
A13: WA025/025I | C13: =C40+C44-C45 -> 60430912.8 | D13: 50534307.4 | E13: 52769328 | F13: 57591762 | G13: 49831570 | H13: 60425160.6 | I13: 50766954 | J13: 55739145.2 | K13: 57763064 | L13: 50780495 | M13: 54466029 | N13: 51128029.4 | O13: 59757273.8 | P13: 50316026.4 | Q13: 51172946 | R13: 57152985 | S13: 49027012 | T13: 59506312.6 | U13: 50054920 | V13: 54053229.2 | W13: 57717280 | X13: 49911639 | Y13: 53742315 | Z13: 50736511.4 | AA13: 58638031.8 | AB13: 50343797.4 | AC13: 50491311
A14: WA031 | C14: =C41 -> 26566751.76 | D14: 21709792.87 | E14: 11410621.38 | F14: 1952766.576 | G14: 3164471.982 | H14: 3678208.26 | I14: 4039130.054 | J14: 3898522.788 | K14: 5826340.403 | L14: 12778958.49 | M14: 20829121.14 | N14: 23313749.41 | O14: 26428761.01 | P14: 21309031.22 | Q14: 11417459.09 | R14: 2169238.068 | S14: 3121073.062 | T14: 3739406.906 | U14: 4034041.356 | V14: 3885316.158 | W14: 5773243.574 | X14: 12255129.7 | Y14: 19996966.85 | Z14: 23284080.35 | AA14: 26394174.38 | AB14: 21298267.16 | AC14: =AC41 -> 12106114.17
A15: WA032 | C15: =C42 -> 1742564.331 | D15: 1172294.823 | E15: 434045.7011 | F15: 195768.4825 | G15: 261402.6685 | H15: 331731.6515 | I15: 340315.2942 | J15: 331488.432 | K15: 410042.9623 | L15: 718431.1967 | M15: 1038450.835 | N15: 1731644.288 | O15: 1891848.556 | P15: 1145993.1 | Q15: 500035.4042 | R15: 296131.7177 | S15: 346320.5964 | T15: 397748.7508 | U15: 316051.4577 | V15: 299088.3325 | W15: 377663.4872 | X15: 751146.4892 | Y15: 1116800.591 | Z15: 1955728.364 | AA15: 1807761.013 | AB15: 1166306.759 | AC15: =AC42 -> 502115.8312
A16: WA04X | C16: =C43 -> 1343017.049 | D16: 1345900.796 | E16: 1314322.674 | F16: 1330329.701 | G16: 1338864.115 | H16: 1340188.065 | I16: 1272098.586 | J16: 1353925.382 | K16: 1292839.656 | L16: 1297017.579 | M16: 1313152.508 | N16: 1314340.399 | O16: 1313371.656 | P16: 1318741.236 | Q16: 1283836.714 | R16: 1303362.031 | S16: 1306376.54 | T16: 1324673.318 | U16: 1249320.633 | V16: 1328407.076 | W16: 1270504.385 | X16: 1273798.087 | Y16: 1287598.232 | Z16: 1291310.38 | AA16: 1287442.068 | AB16: 1293084.101 | AC16: =AC43 -> 1260162.708
C17: =SUM(C8:C16) -> 476016579.4 | D17: 395123913.3 | E17: 408677773.3 | F17: 474068162.6 | G17: 532668230.9 | H17: 542845478.3 | I17: 479952298.1 | J17: 449176699.8 | K17: 399320132.2 | L17: 383719989.3 | M17: 398109084.6 | N17: 446611476.7 | O17: 466780543.5 | P17: 391979425.1 | Q17: 406743492.2 | R17: 467111090.5 | S17: 531014015.5 | T17: 543000695.7 | U17: 481316460.3 | V17: 451644526.3 | W17: 402677037.3 | X17: 386277941.9 | Y17: 398798838.2 | Z17: 446664557.6 | AA17: 466181567.5 | AB17: 392364115.8 | AC17: =SUM(AC8:AC16) -> 408503494.8
A19: WA001 | C19: =C8 -> 216209497.8 | D19: 164378140.2 | E19: 174139117.2 | F19: 235946008 | G19: 297456462.6 | H19: 301765375.5 | I19: 255859994.1 | J19: 225841060.5 | K19: 182482987.3 | L19: 163759072.5 | M19: 161242849.6 | N19: 192776018.1 | O19: 210064417 | P19: 164248252.8 | Q19: =Q8 -> 175151073.1 | R19: 230797454 | S19: 298268989.5 | T19: 301956578.9 | U19: 258602225.1 | V19: 230124279.3 | W19: 187095773 | X19: 168319383.4 | Y19: 163683407.8 | Z19: 192711531.4 | AA19: 210081292.8 | AB19: 165466383.5 | AC19: =AC8 -> 177402346.6 | AD19: =SUM(F19:Q19) -> 2566593571 | AE19: =SUM(R19:AC19) -> 2584509645
A20: WA011/12 | C20: =C9+C10 -> 57384870.78 | D20: 51158303.55 | E20: 52609259.19 | F20: 59969436.39 | G20: 67514674.55 | H20: 66175768.17 | I20: 60824854.04 | J20: 57642337.67 | K20: 50313004.49 | L20: 48799715.82 | M20: 50199193.22 | N20: 57934521.5 | O20: 57518232.07 | P20: 51168047.44 | Q20: =Q9+Q10 -> 53023975.41 | R20: 60307610.73 | S20: 67675694.46 | T20: 67356187.22 | U20: 61603730.85 | V20: 58644864.54 | W20: 50922850.61 | X20: 49588145.1 | Y20: 50973821.63 | Z20: 58904769.94 | AA20: 58530067.26 | AB20: 51716360.91 | AC20: =AC9+AC10 -> 53899119.97 | AD20: =SUM(F20:Q20) -> 681083760.8 | AE20: 690123223.2
A21: WA021/22 | C21: =C11+C12 -> 112338964.9 | D21: 104825173.7 | E21: 116001079.1 | F21: 117082091.4 | G21: 113100785 | H21: 109129046 | I21: 106848952 | J21: 104370219.9 | K21: 101231853.4 | L21: 105586298.7 | M21: 109020288.3 | N21: 118413173.6 | O21: 109806639.4 | P21: 102473332.9 | Q21: =Q11+Q12 -> 114194166.4 | R21: 115084309 | S21: 111268549.4 | T21: 108719787.9 | U21: 105456170.8 | V21: 103309341.7 | W21: 99519722.2 | X21: 104178700.1 | Y21: 107997928.2 | Z21: 117780625.7 | AA21: 109442798.2 | AB21: 101079915.9 | AC21: =AC11+AC12 -> 112842324.6 | AD21: 1311256847 | AE21: 1296680174
A22: WA025 | C22: =C13 -> 60430912.8 | D22: 50534307.4 | E22: 52769328 | F22: 57591762 | G22: 49831570 | H22: 60425160.6 | I22: 50766954 | J22: 55739145.2 | K22: 57763064 | L22: 50780495 | M22: 54466029 | N22: 51128029.4 | O22: 59757273.8 | P22: 50316026.4 | Q22: =Q13 -> 51172946 | R22: 57152985 | S22: 49027012 | T22: 59506312.6 | U22: 50054920 | V22: 54053229.2 | W22: 57717280 | X22: 49911639 | Y22: 53742315 | Z22: 50736511.4 | AA22: 58638031.8 | AB22: 50343797.4 | AC22: =AC13 -> 50491311 | AD22: 649738455.4 | AE22: 641375344.4
A23: WA031/32 | C23: =C14+C15 -> 28309316.09 | D23: 22882087.7 | E23: 11844667.08 | F23: 2148535.059 | G23: 3425874.651 | H23: 4009939.911 | I23: 4379445.348 | J23: 4230011.22 | K23: 6236383.365 | L23: 13497389.69 | M23: 21867571.97 | N23: 25045393.69 | O23: 28320609.57 | P23: 22455024.31 | Q23: =Q14+Q15 -> 11917494.5 | R23: 2465369.786 | S23: 3467393.658 | T23: 4137155.657 | U23: 4350092.814 | V23: 4184404.49 | W23: 6150907.062 | X23: 13006276.19 | Y23: 21113767.44 | Z23: 25239808.72 | AA23: 28201935.4 | AB23: 22464573.92 | AC23: =AC14+AC15 -> 12608230 | AD23: 147533673.3 | AE23: 147389915.1
A24: WA04X | C24: =C16 -> 1343017.049 | D24: 1345900.796 | E24: 1314322.674 | F24: 1330329.701 | G24: 1338864.115 | H24: 1340188.065 | I24: 1272098.586 | J24: 1353925.382 | K24: 1292839.656 | L24: 1297017.579 | M24: 1313152.508 | N24: 1314340.399 | O24: 1313371.656 | P24: 1318741.236 | Q24: =Q16 -> 1283836.714 | R24: 1303362.031 | S24: 1306376.54 | T24: 1324673.318 | U24: 1249320.633 | V24: 1328407.076 | W24: 1270504.385 | X24: 1273798.087 | Y24: 1287598.232 | Z24: 1291310.38 | AA24: 1287442.068 | AB24: 1293084.101 | AC24: =AC16 -> 1260162.708 | AD24: 15768705.6 | AE24: 15476039.56
A25: Total | C25: =SUM(C19:C24) -> 476016579.4 | D25: 395123913.3 | E25: 408677773.3 | F25: 474068162.6 | G25: 532668230.9 | H25: 542845478.3 | I25: 479952298.1 | J25: 449176699.8 | K25: 399320132.2 | L25: 383719989.3 | M25: 398109084.6 | N25: 446611476.7 | O25: 466780543.5 | P25: 391979425.1 | Q25: 406743492.2 | R25: 467111090.5 | S25: 531014015.5 | T25: 543000695.7 | U25: 481316460.3 | V25: 451644526.3 | W25: 402677037.3 | X25: 386277941.9 | Y25: 398798838.2 | Z25: 446664557.6 | AA25: 466181567.5 | AB25: 392364115.8 | AC25: =SUM(AC19:AC24) -> 408503494.8 | AD25: 5371975013 | AE25: 5375554341
C31: =SUM(C32:C44)-C17-C45 -> 0 | D31: =SUM(D32:D44)-D17-D45 -> 0 | E31: -5.960464478e-08 | F31: -5.960464478e-08 | G31: -5.960464478e-08 | H31: 2.160668373e-07 | I31: 0 | J31: 0 | K31: 5.960464478e-08 | L31: 0 | M31: 0 | N31: 0 | O31: 0 | P31: 0 | Q31: 5.960464478e-08 | R31: 0 | S31: 0 | T31: 9.685754776e-08 | U31: 0 | V31: 0 | W31: 0 | X31: 0 | Y31: 0 | Z31: 0 | AA31: -7.450580597e-08 | AB31: -3.725290298e-08 | AC31: 0
A32: WA_1 | C32: 215442657.2 | D32: 163752148.2 | E32: 173339779.5 | F32: 234685770.7 | G32: 295838192.7 | H32: 300095194.1 | I32: 254448635.1 | J32: 224581696.5 | K32: 181513176.1 | L32: 162969995.6 | M32: 160554701.5 | N32: 192002592.1 | O32: 209238599.5 | P32: 163555764.9 | Q32: 174264645.7 | R32: 229437625.8 | S32: 296478795.4 | T32: 300113886.1 | U32: 257030039.5 | V32: 228711497.2 | W32: 185998357.7 | X32: 167422146.1 | Y32: 162909364.8 | Z32: 191858351.3 | AA32: 209174133.8 | AB32: 164703446.7 | AC32: 176427670.1
A33: WA_2 | C33: 766840.5245 | D33: 625991.9252 | E33: 799337.75 | F33: 1260237.259 | G33: 1618269.859 | H33: 1670181.47 | I33: 1411358.982 | J33: 1259363.95 | K33: 969811.1648 | L33: 789076.9017 | M33: 688148.0692 | N33: 773425.9844 | O33: 825817.459 | P33: 692487.8791 | Q33: 886427.4688 | R33: 1359828.164 | S33: 1790194.059 | T33: 1842692.87 | U33: 1572185.587 | V33: 1412782.14 | W33: 1097415.289 | X33: 897237.3041 | Y33: 774043.0084 | Z33: 853180.1282 | AA33: 907158.9877 | AB33: 762936.7773 | AC33: 974676.4601
A34: WA_11 | C34: 52730970.28 | D34: 46937131.26 | E34: 47674416.72 | F34: 53360383.11 | G34: 58886735.21 | H34: 57541184.59 | I34: 53408614.28 | J34: 50941696.14 | K34: 45237575.2 | L34: 44366534.57 | M34: 45914454.56 | N34: 53252842.79 | O34: 52822257.96 | P34: 46913868.02 | Q34: 48070230.72 | R34: 53534570.25 | S34: 59069810.65 | T34: 58564591.78 | U34: 54053141.04 | V34: 51703226.37 | W34: 45687455.29 | X34: 45046005.92 | Y34: 46566425.16 | Z34: 54033292.33 | AA34: 53684987.41 | AB34: 47389872.56 | AC34: 48815991.19
A35: WA_12 | C35: 4638729.349 | D35: 4206000.716 | E35: 4919592.768 | F35: 6594252.941 | G35: 8613066.579 | H35: 8619636.379 | I35: 7401238.036 | J35: 6685612.29 | K35: 5060397.822 | L35: 4418153.872 | M35: 4269722.546 | N35: 4666681.28 | O35: 4681005.349 | P35: 4239191.074 | Q35: 4938743.876 | R35: 6758033.751 | S35: 8590876.374 | T35: 8776590.528 | U35: 7535587.83 | V35: 6926638.988 | W35: 5220398.039 | X35: 4527141.914 | Y35: 4392396.028 | Z35: 4856475.827 | AA35: 4830077.959 | AB35: 4311487.002 | AC35: 5068128.099
A36: WA_13 | C36: 15171.15252 | D36: 15171.57672 | E36: 15249.69348 | F36: 14800.34078 | G36: 14872.7628 | H36: 14947.20789 | I36: 15001.73172 | J36: 15029.24517 | K36: 15031.46577 | L36: 15027.38003 | M36: 15016.11374 | N36: 14997.42928 | O36: 14968.76108 | P36: 14988.34386 | Q36: 15000.81089 | R36: 15006.72527 | S36: 15007.43413 | T36: 15004.92167 | U36: 15001.98022 | V36: 14999.18242 | W36: 14997.28228 | X36: 14997.2704 | Y36: 15000.44141 | Z36: 15001.78189 | AA36: 15001.89114 | AB36: 15001.35434 | AC36: 15000.67814
A37: WA_21 | C37: 109905199.9 | D37: 102666656.9 | E37: 113640007 | F37: 114377238.1 | G37: 109523588 | H37: 105631380.9 | I37: 103944190.7 | J37: 101659611.8 | K37: 99026068.3 | L37: 103543780.2 | M37: 107000416 | N37: 115981061.1 | O37: 107394096.5 | P37: 100340398.6 | Q37: 111818411.2 | R37: 112362887 | S37: 107800174.5 | T37: 105215875.5 | U37: 102544634.3 | V37: 100598864.4 | W37: 97299094.76 | X37: 102120681.3 | Y37: 105939519.1 | Z37: 115312432.1 | AA37: 107006397 | AB37: 98953744.84 | AC37: 110441528.5
A38: WA_22 | C38: 2401757.264 | D38: 2126458.209 | E38: 2329226.347 | F38: 2671737.571 | G38: 3544925.525 | H38: 3465430.973 | I38: 2872581.188 | J38: 2678329.894 | K38: 2173540.738 | L38: 2010329.508 | M38: 1987648.506 | N38: 2399848.189 | O38: 2380246.557 | P38: 2100608.745 | Q38: 2343507.282 | R38: 2689172.432 | S38: 3436123.477 | T38: 3471656.469 | U38: 2879282.023 | V38: 2678221.091 | W38: 2188364.732 | X38: 2025752.509 | Y38: 2026142.397 | Z38: 2435929.907 | AA38: 2404143.669 | AB38: 2093912.663 | AC38: 2368536.774
A39: WA_23 | C39: 32007.77235 | D39: 32058.63887 | E39: 31845.74431 | F39: 33115.78522 | G39: 32271.52467 | H39: 32234.12456 | I39: 32180.12251 | J39: 32278.21729 | K39: 32244.41141 | L39: 32189.04203 | M39: 32223.79658 | N39: 32264.31236 | O39: 32296.33783 | P39: 32325.51951 | Q39: 32247.95892 | R39: 32249.6262 | S39: 32251.43885 | T39: 32256.00586 | U39: 32254.57349 | V39: 32256.21658 | W39: 32262.71183 | X39: 32266.25981 | Y39: 32266.66693 | Z39: 32263.76821 | AA39: 32257.52153 | AB39: 32258.44414 | AC39: 32259.36981
A40: WA_25 | C40: 58885543 | D40: 49947496 | E40: 50764195 | F40: 49541955 | G40: 49979591 | H40: 55440542 | I40: 48854215 | J40: 52560911 | K40: 49147173 | L40: 49713670 | M40: 52029033 | N40: 51512338 | O40: 58011555 | P40: 50365851 | Q40: 50452671 | R40: 49586033 | S40: 49714103 | T40: 54926927 | U40: 49057508 | V40: 51207377 | W40: 49361216 | X40: 49414639 | Y40: 51618075 | Z40: 51429669 | AA40: 57048223 | AB40: 50693189 | AC40: 49948708
A41: WA_31 | C41: 26566751.76 | D41: 21709792.87 | E41: 11410621.38 | F41: 1952766.576 | G41: 3164471.982 | H41: 3678208.26 | I41: 4039130.054 | J41: 3898522.788 | K41: 5826340.403 | L41: 12778958.49 | M41: 20829121.14 | N41: 23313749.41 | O41: 26428761.01 | P41: 21309031.22 | Q41: 11417459.09 | R41: 2169238.068 | S41: 3121073.062 | T41: 3739406.906 | U41: 4034041.356 | V41: 3885316.158 | W41: 5773243.574 | X41: 12255129.7 | Y41: 19996966.85 | Z41: 23284080.35 | AA41: 26394174.38 | AB41: 21298267.16 | AC41: 12106114.17
A42: WA_32 | C42: 1742564.331 | D42: 1172294.823 | E42: 434045.7011 | F42: 195768.4825 | G42: 261402.6685 | H42: 331731.6515 | I42: 340315.2942 | J42: 331488.432 | K42: 410042.9623 | L42: 718431.1967 | M42: 1038450.835 | N42: 1731644.288 | O42: 1891848.556 | P42: 1145993.1 | Q42: 500035.4042 | R42: 296131.7177 | S42: 346320.5964 | T42: 397748.7508 | U42: 316051.4577 | V42: 299088.3325 | W42: 377663.4872 | X42: 751146.4892 | Y42: 1116800.591 | Z42: 1955728.364 | AA42: 1807761.013 | AB42: 1166306.759 | AC42: 502115.8312
A43: WA_4X | C43: 1343017.049 | D43: 1345900.796 | E43: 1314322.674 | F43: 1330329.701 | G43: 1338864.115 | H43: 1340188.065 | I43: 1272098.586 | J43: 1353925.382 | K43: 1292839.656 | L43: 1297017.579 | M43: 1313152.508 | N43: 1314340.399 | O43: 1313371.656 | P43: 1318741.236 | Q43: 1283836.714 | R43: 1303362.031 | S43: 1306376.54 | T43: 1324673.318 | U43: 1249320.633 | V43: 1328407.076 | W43: 1270504.385 | X43: 1273798.087 | Y43: 1287598.232 | Z43: 1291310.38 | AA43: 1287442.068 | AB43: 1293084.101 | AC43: 1260162.708
A44: WA_25I | C44: 36557518 | D44: 33791973 | E44: 36644189 | F44: 35454061 | G44: 34638205 | H44: 35576866 | I44: 30968543 | J44: 33226563 | K44: 36898259 | L44: 34318289 | M44: 34622943 | N44: 34410021 | O44: 36757867 | P44: 33155337 | Q44: 35359331 | R44: 34971206 | S44: 34099135 | T44: 35171633 | U44: 30053216 | V44: 32894181 | W44: 36638432 | X44: 33748464 | Y44: 34310187 | Z44: 34101172 | AA44: 36601957 | AB44: 32855770 | AC44: 35181659
A45: WA 25/25I Block 3 | C45: 35012148.2 | D45: 33205161.6 | E45: 34639056 | F45: 27404254 | G45: 34786226 | H45: 30592247.4 | I45: 29055804 | J45: 30048328.8 | K45: 28282368 | L45: 33251464 | M45: 32185947 | N45: 34794329.6 | O45: 35012148.2 | P45: 33205161.6 | Q45: 34639056 | R45: 27404254 | S45: 34786226 | T45: 30592247.4 | U45: 29055804 | V45: 30048328.8 | W45: 28282368 | X45: 33251464 | Y45: 32185947 | Z45: 34794329.6 | AA45: 35012148.2 | AB45: 33205161.6 | AC45: 34639056

Sheet Rev Conv Factor
A1: AVISTA UTILITIES
A2: REVENUE CONVERSION FACTOR
A3: WASHINGTON ELECTRIC
A4: TWELVE MONTHS ENDED SEPTEMBER 30, 2021
A6: Line
A7: No. | C7: Description | E7: Factor
A9: 1 | C9: Revenues | E9: 1
C11: Expense:
A12: 2 | C12: Uncollectibles | E12: 0.003326288579
A14: 3 | C14: Commission Fees | E14: 0.002
A16: 4 | C16: Washington Excise Tax | E16: 0.03860515954
A18: 5 | C18: Franchise Fees | E18: 0
A20: 6 | C20: Total Expense | E20: =E12+E14+E16+E18 -> 0.04393144812
A22: 7 | C22: Net Operating Income Before FIT | E22: =E9-E20 -> 0.9560685519
A24: 8 | C24: Federal Income Tax @ 21% | E24: 0.2007743959
A26: 9 | C26: REVENUE CONVERSION FACTOR | E26: =E22-E24 -> 0.755294156
A29: Source: UE-220053

Sheet Base Revenue
A1: AVISTA UTILITIES
A2: WASHINGTON ELECTRIC
A3: PROPOSED INCREASE BY SERVICE SCHEDULE
A4: 12 MONTHS ENDED SEPTEMBER 30, 2021
A5: (000s of Dollars)
A6: Source: UE-20053 Compliance Filing, Attachment 1
D8: Base Tariff | F8: Base Tariff | G8: Base | H8: Base Tariff | I8: Total Billed | K8: Adjusted Billed | L8: Base | M8: Sch 78 | O8: Percent | Q8: Percent | U8: Percent | V8: Total Billed
D9: Revenue | E9: Proposed | F9: Revenue | G9: Tariff | H9: Percent | I9: Revenue | J9: Misc | K9: Revenue | L9: Rate | M9: Tax | N9: Total | O9: Increase | P9: Proposed | Q9: Increase | U9: Increase | V9: Revenue
B10: Type of | C10: Schedule | D10: Under Present | E10: General | F10: Under Proposed | G10: Percent | H10: Change | I10: at Present | J10: Rate Adjustment | K10: at Present | L10: General | M10: Rate | N10: Net | O10: on Billed | P10: General | Q10: on Billed | U10: on Base | V10: at Proposed
A11: No. | B11: Service | C11: Number | D11: Rates(1) | E11: Increase | F11: Rates(1) | G11: Increase | H11: from Sp Ct | I11: Rates (2) | J11: Change | K11: Rates (2) | L11: Increase | M11: Credit | N11: Impact | O11: Revenue | P11: Increase | Q11: Revenue | U11: Revenue | V11: Rates (2)
B12: (a) | C12: (b) | D12: (c) | E12: (d) | F12: (e) | G12: (f) | H12: (i) | I12: (g) | J12: (h) | K12: (h) | L12: (h) | M12: (i) | N12: (j) | O12: (k) | P12: (j) | Q12: (k) | S12: col (m) source
A14: 1 | B14: Residential | C14: 1/2 | D14: 253459.0899 | E14: 26025.31605 | F14: 279484.4059 | G14: 0.1026805393 | H14: 0.09311902738 | I14: 240021.7457 | J14: 0 | K14: 240021.7457 | L14: 26025.31605 | M14: -12722 | N14: 13303.31605 | O14: 0.05542546161 | P14: 26025.31605 | Q14: 0.1084289925 | S14: from Pres & Prop Rev tab | U14: 0.1026805393 | V14: 253325.0617
A16: 2 | B16: General Service | C16: 11/12 | D16: 81570.42638 | E16: 3263.813327 | F16: 84833.83971 | G16: 0.04001221364 | H16: 0.03847301193 | I16: 87406.54088 | J16: 0 | K16: 87406.54088 | L16: 3263.813327 | M16: 0 | N16: 3263.813327 | O16: 0.0373406074 | P16: 3263.813327 | Q16: 0.0373406074 | S16: from below | U16: 0.04001221364 | V16: 90670.35421
A18: 3 | B18: Large General Service | C18: 21/22 | D18: 131152.6852 | E18: 5247.046103 | F18: 136399.7313 | G18: 0.04000715728 | H18: 0.03846815572 | I18: 142808.5055 | J18: 0 | K18: 142808.5055 | L18: 5247.046103 | M18: 0 | N18: 5247.046103 | O18: 0.03674183191 | P18: 5247.046103 | Q18: 0.03674183191 | S18: from below | U18: 0.04000715728 | V18: 148055.5516
A20: 4 | B20: Extra Large General Service | C20: 25 | D20: 41217.65624 | E20: 823.0493544 | F20: 42040.7056 | G20: 0.01996836864 | H20: 0.01957743912 | I20: 41422.0512 | J20: 0 | K20: 41422.0512 | L20: 823.0493544 | M20: 0 | N20: 823.0493544 | O20: 0.01986983576 | P20: 823.0493544 | Q20: 0.01986983576 | S20: from Pres & Prop Rev tab | U20: 0.01996836864 | V20: 42245.10056
A22: 5 | B22: Extra Large General Service - Special Contract | C22: 25I | D22: 21772.91244 | E22: 435.199067 | F22: 22208.11151 | G22: 0.01998809613 | H22: 0.01959640138 | I22: 22445.29772 | J22: 0 | K22: 22445.29772 | L22: 435.199067 | M22: 0 | N22: 435.199067 | O22: 0.01938932031 | P22: 435.199067 | Q22: 0.01938932031 | S22: from Pres & Prop Rev tab | U22: 0.01998809613 | V22: 22880.49679
A24: 6 | B24: Pumping Service | C24: 30/31/32 | D24: 14578.56552 | E24: 1496.60727 | F24: 16075.57279 | G24: 0.1026580611 | H24: 0.09309822359 | I24: 15745.31949 | J24: 0 | K24: 15745.31949 | L24: 1496.60727 | M24: -732 | N24: 764.60727 | O24: 0.04856092443 | P24: 1496.60727 | Q24: 0.09505093057 | S24: from below | U24: 0.1026580611 | V24: 16509.92676
A26: 7 | B26: Street & Area Lights | C26: 41-48 | D26: 6900.605642 | E26: 708.7722 | F26: 7609.577842 | G26: 0.1027115933 | H26: 0.09314211835 | I26: 7097.80042 | J26: 0 | K26: 7097.80042 | L26: 708.7722 | M26: -346 | N26: 362.7722 | O26: 0.05111051009 | P26: 708.7722 | Q26: 0.09985800643 | S26: from Pres & Prop Rev tab | U26: 0.1027115933 | V26: 7460.57262
A28: 8 | B28: Total | D28: 550651.9413 | E28: 37999.80337 | F28: 588652.3447 | G28: 0.06900875221 | I28: 556947.2609 | J28: 0 | K28: 556947.2609 | L28: 37999.80337 | M28: -13799.7 | N28: 24200.10337 | O28: 0.04345133745 | P28: 37999.80337 | Q28: 0.06822872836 | S28: from below | U28: 0.06900875221 | V28: 581147.3642
D29: 0
P31: 0.01970096524 | R31: 0.01970096524
A33: (1) Excludes all present rate adjustments: Schedule 59 (BPA Residential Exchange), Schedule 75 (Decoupling), Schedule 76 (Tax Credit)
A34: Scheduke 89 (Low Income Discount), Schedule 91 (DSM), Schedule 92 (LIRAP), Schedule 93 (ERM) and Schedule 98 (REC Revenue).
A36: (2) Includes all present rate adjustments: Schedule 59 (BPA Residential Exchange), Schedule 75 (Decoupling), Schedule 76 (Tax Credit)
A37: Scheduke 89 (Low Income Discount), Schedule 91 (DSM), Schedule 92 (LIRAP), Schedule 93 (ERM) and Schedule 98 (REC Revenue).
